bitfinex/quotes_BTCUSD_20230111
["timestamp","ask_amount","ask_price","bid_price","bid_amount"]
[1673457822190,0.02377172,17388.0,17387.0,3.47505697]
[1673457822448,0.02377172,17388.0,17387.0,3.5151761]
[1673457822704,0.02377172,17388.0,17387.0,3.25813209]
[1673457822992,0.02377172,17388.0,17387.0,2.95813209]
[1673457823234,0.02377172,17388.0,17387.0,2.48681289]
[1673457823490,0.02377172,17388.0,17387.0,2.4867232]
[1673457824276,0.02377172,17388.0,17387.0,2.6580424]
[1673457824496,0.02377172,17388.0,17387.0,2.4867232]
[1673457824748,0.02377172,17388.0,17387.0,2.95803261]
[1673457825528,0.02377172,17388.0,17387.0,2.95797261]
[1673457826034,0.02377172,17388.0,17387.0,3.7818769]
[1673457826539,0.02377172,17388.0,17387.0,3.4818769]
[1673457826792,0.02377172,17388.0,17387.0,2.65797261]
[1673457827531,0.02377172,17388.0,17387.0,2.95797261]
[1673457827786,0.02377172,17388.0,17387.0,2.65797261]
[1673457828037,0.02377172,17388.0,17387.0,3.48229577]
[1673457828549,0.02377172,17388.0,17387.0,2.91501662]
[1673457829561,0.02377172,17388.0,17387.0,3.78209471]
[1673457830345,0.02377172,17388.0,17387.0,3.95342772]
[1673457832102,0.02377172,17388.0,17387.0,3.51628678]
[1673457832359,0.02377172,17388.0,17387.0,3.17363457]
[1673457832623,0.02377172,17388.0,17387.0,3.73842144]
[1673457833152,0.02377172,17388.0,17387.0,3.17363457]
[1673457834128,0.02377172,17388.0,17387.0,3.73663891]
[1673457834346,0.02377172,17388.0,17387.0,3.17414004]
[1673457834605,0.02377172,17388.0,17387.0,3.70816885]
[1673457835117,0.02377172,17388.0,17387.0,3.17414004]
[1673457835625,0.02377172,17388.0,17387.0,2.74489549]
[1673457835877,0.02377172,17388.0,17387.0,3.3276827]
[1673457836142,0.02377172,17388.0,17387.0,2.74489549]
[1673457836383,0.02377172,17388.0,17387.0,3.36222843]
[1673457836893,0.02377172,17388.0,17387.0,3.17419229]
[1673457837135,0.02377172,17388.0,17387.0,3.7458757]
[1673457837879,0.02377172,17388.0,17387.0,2.74489549]
[1673457838134,0.02225664,17389.0,17388.0,0.3120459]
[1673457838387,0.02225664,17389.0,17388.0,4.19213049]
[1673457838694,0.02225664,17389.0,17388.0,3.84868248]
[1673457839205,0.02225664,17389.0,17388.0,4.20915848]
[1673457839512,0.02225664,17389.0,17388.0,4.35015848]
[1673457839952,0.02225664,17389.0,17388.0,3.98968248]
[1673457840203,0.02225664,17389.0,17388.0,4.05015848]
[1673457840455,0.02225664,17389.0,17388.0,4.3936091]
[1673457840704,0.02225664,17389.0,17388.0,4.39366502]
[1673457840953,0.02225664,17389.0,17388.0,4.05021848]
[1673457841704,0.02225664,17389.0,17388.0,4.05039872]
[1673457841957,0.02225664,17389.0,17388.0,3.68992272]
[1673457842212,0.02225664,17389.0,17388.0,4.05039872]
[1673457843234,0.02225664,17389.0,17388.0,2.63518195]
[1673457843488,0.02225664,17389.0,17388.0,2.84981495]
[1673457844293,0.02225664,17389.0,17388.0,3.14981495]
[1673457845844,0.02225664,17389.0,17388.0,3.14975495]
[1673457846364,0.02225664,17389.0,17388.0,3.49312231]
[1673457846898,0.02225664,17389.0,17388.0,2.76363865]
[1673457847156,0.02225664,17389.0,17388.0,3.02120539]
[1673457848678,0.02225664,17389.0,17388.0,3.45050881]
[1673457848928,0.02225664,17389.0,17388.0,3.02120539]
[1673457850457,0.02225664,17389.0,17388.0,3.02335266]
[1673457853235,0.82139228,17389.0,17388.0,2.8496088]
[1673457854319,0.82139228,17389.0,17388.0,2.85175607]
[1673457854832,0.82139228,17389.0,17388.0,2.8496088]
[1673457855416,0.82139228,17389.0,17388.0,0.60071657]
[1673457855672,0.98689228,17389.0,17388.0,0.141]
[1673457855927,1.28689228,17389.0,17388.0,0.141]
[1673457856687,2.92899268,17389.0,17388.0,0.141]
[1673457859741,2.76349268,17389.0,17388.0,0.141]
[1673457860020,2.76349268,17389.0,17388.0,1.47997598]
[1673457860021,2.46349268,17389.0,17388.0,1.47997598]
[1673457860241,1.66435704,17389.0,17388.0,1.47997598]
[1673457860488,1.66435704,17389.0,17388.0,2.05487928]
[1673457860740,0.02225664,17389.0,17388.0,2.31244602]
[1673457860989,0.02225664,17389.0,17388.0,2.31265172]
[1673457861243,0.02225664,17389.0,17388.0,2.90287376]
[1673457862733,0.02225664,17389.0,17388.0,2.31244602]
[1673457863272,0.02225664,17389.0,17388.0,2.05487928]
[1673457864018,0.02225664,17389.0,17388.0,2.05508498]
[1673457864272,0.02225664,17389.0,17388.0,2.05487928]
[1673457864773,0.02217699,17389.0,17388.0,2.05487928]
[1673457865540,0.64715341,17389.0,17388.0,1.88310851]
[1673457866289,0.64715341,17389.0,17388.0,0.716109]
[1673457866549,0.81265341,17389.0,17388.0,0.141]
[1673457866808,1.11265341,17389.0,17388.0,0.141]
[1673457867839,0.81265341,17389.0,17388.0,0.1412057]
[1673457868338,0.81265341,17389.0,17388.0,0.141]
[1673457868596,0.81265341,17389.0,17388.0,0.716109]
[1673457872380,0.81265341,17389.0,17388.0,0.141]
[1673457879504,1.11265341,17389.0,17388.0,0.141]
[1673457885389,0.41265341,17389.0,17388.0,0.141]
[1673457885855,0.58521056,17389.0,17388.0,0.141]
[1673457886906,1.73559782,17389.0,17388.0,0.141]
[1673457887675,0.58521056,17389.0,17388.0,0.141]
[1673457889471,2.33415552,17389.0,17388.0,0.141]
[1673457889723,1.18377537,17389.0,17388.0,0.141]
[1673457890246,2.84731572,17389.0,17388.0,0.141]
[1673457890749,2.84231572,17389.0,17388.0,0.141]
[1673457890999,2.84221782,17389.0,17388.0,0.141]
[1673457891249,2.32916162,17389.0,17388.0,0.141]
[1673457891780,2.49466162,17389.0,17388.0,0.141]
[1673457892016,3.26656541,17389.0,17388.0,0.141]
[1673457892518,5.26656541,17389.0,17388.0,0.141]
[1673457892991,5.26656541,17389.0,17387.0,0.60911016]
[1673457893234,0.1655,17388.0,17387.0,0.60911016]
[1673457893987,2.1655,17388.0,17387.0,0.60911016]
[1673457894499,2.1825,17388.0,17387.0,0.60911016]
[1673457900748,2.1825,17388.0,17387.0,6e-05]
[1673457901736,0.3,17387.0,17386.0,3.68336175]
[1673457901993,2.81476601,17388.0,17386.0,3.68336175]
[1673457902253,1.6421004,17387.0,17386.0,3.94092849]
[1673457902510,1.6421004,17387.0,17386.0,4.53227285]
[1673457903306,1.6421004,17387.0,17386.0,5.12644785]
[1673457903562,1.6421004,17387.0,17386.0,5.10744785]
[1673457903829,1.6421004,17387.0,17386.0,5.12644785]
[1673457905082,1.6421004,17387.0,17386.0,4.53510349]
[1673457906105,1.6421004,17387.0,17386.0,5.12686895]
[1673457906360,1.6421004,17387.0,17386.0,4.53510349]
[1673457907385,1.6421004,17387.0,17386.0,2.80836492]
[1673457907661,3.19779034,17387.0,17386.0,2.55079818]
[1673457907897,4.52084891,17387.0,17386.0,2.37902741]
[1673457908154,4.52084891,17387.0,17386.0,0.38084041]
[1673457908406,4.52084891,17387.0,17386.0,0.019]
[1673457908675,3.37034749,17387.0,17384.0,1.30834629]
[1673457908934,0.1655,17385.0,17384.0,1.30834629]
[1673457909192,0.1655,17385.0,17384.0,1.56591303]
[1673457909477,0.1655,17385.0,17384.0,1.26064923]
[1673457910854,1.60759687,17386.0,17384.0,1.26064923]
[1673457911026,1.60759687,17386.0,17384.0,1.27964923]
[1673457911282,1.09419603,17386.0,17384.0,1.27964923]
[1673457912311,1.09419603,17386.0,17384.0,1.51821597]
[1673457912584,1.09419603,17386.0,17384.0,1.53721597]
[1673457914100,1.09419603,17386.0,17384.0,1.27964923]
[1673457914357,1.09419603,17386.0,17384.0,1.53721597]
[1673457916102,0.66132116,17385.0,17384.0,1.27964923]
[1673457916866,0.66132116,17385.0,17384.0,0.19077077]
[1673457917122,0.66132116,17385.0,17384.0,0.019]
[1673457917632,0.66132116,17385.0,17384.0,0.17177077]
[1673457918668,0.66132116,17385.0,17384.0,0.19077077]
[1673457921900,0.66132116,17385.0,17384.0,0.019]
[1673457922247,0.82682116,17385.0,17384.0,0.019]
[1673457925291,1.805722,17385.0,17384.0,0.019]
[1673457925817,1.805722,17385.0,17382.0,1.63106632]
[1673457926071,0.1655,17383.0,17382.0,1.63106632]
[1673457926304,0.1655,17383.0,17382.0,1.37349958]
[1673457926553,0.1655,17383.0,17382.0,1.63106632]
[1673457927055,0.1655,17383.0,17382.0,1.37349958]
[1673457927309,0.1655,17383.0,17382.0,1.63106632]
[1673457928044,0.1655,17383.0,17382.0,1.72106632]
[1673457928298,0.1655,17383.0,17382.0,0.88820958]
[1673457929542,0.1655,17383.0,17382.0,0.88842744]
[1673457929789,0.1655,17383.0,17382.0,0.88820958]
[1673457930034,0.1655,17383.0,17382.0,1.14577632]
[1673457931064,0.1655,17383.0,17382.0,0.88820958]
[1673457934569,0.16540947,17383.0,17382.0,0.88820958]
[1673457935412,0.16540947,17383.0,17382.0,0.36735388]
[1673457935675,0.57884743,17383.0,17382.0,0.19558311]
[1673457936172,2.22094783,17383.0,17382.0,0.19558311]
[1673457941031,2.22094783,17383.0,17382.0,0.36735388]
[1673457941295,1.6421004,17383.0,17382.0,0.36735388]
[1673457941798,1.6421004,17383.0,17382.0,0.90932966]
[1673457941799,1.6421004,17383.0,17382.0,1.1668964]
[1673457942072,1.6421004,17383.0,17382.0,1.48463666]
[1673457942571,1.6421004,17383.0,17382.0,1.7422034]
[1673457942823,1.6421004,17383.0,17382.0,0.94266088]
[1673457944126,1.6421004,17383.0,17382.0,0.36735388]
[1673457944382,1.6421004,17383.0,17382.0,0.19558311]
[1673457944931,1.6421004,17383.0,17382.0,0.36735388]
[1673457945184,1.6421004,17383.0,17382.0,0.19558311]
[1673457946215,1.6421004,17383.0,17382.0,0.36735388]
[1673457946744,1.6421004,17383.0,17382.0,0.62492062]
[1673457946970,1.6421004,17383.0,17382.0,0.36735388]
[1673457950965,1.6421004,17383.0,17382.0,0.19558311]
[1673457951735,2.89955485,17383.0,17382.0,0.19558311]
[1673457969022,3.072112,17383.0,17382.0,0.19558311]
[1673457970294,4.22287399,17383.0,17382.0,0.19558311]
[1673457971541,3.072112,17383.0,17382.0,0.19558311]
[1673457971804,2.89955485,17383.0,17382.0,0.19558311]
[1673457975589,2.38615401,17383.0,17382.0,0.19558311]
[1673457976869,2.38615401,17383.0,17382.0,0.36735388]
[1673457978141,2.38615401,17383.0,17382.0,0.19558311]
[1673457982461,2.38615401,17383.0,17382.0,0.36735388]
[1673457982686,2.38615401,17383.0,17382.0,0.19558311]
[1673457984463,2.38615401,17383.0,17382.0,0.36735388]
[1673457984723,2.38615401,17383.0,17382.0,0.19558311]
[1673457985288,2.38615401,17383.0,17382.0,0.36735388]
[1673457985537,2.38615401,17383.0,17382.0,0.19558311]
[1673457988198,2.38615401,17383.0,17382.0,0.36735388]
[1673457989650,2.89955485,17383.0,17382.0,0.19558311]
[1673457989895,4.48170501,17383.0,17382.0,0.19558311]
[1673457991665,4.48170501,17383.0,17382.0,0.19058311]
[1673457992137,4.22285736,17383.0,17382.0,0.19058311]
[1673457995669,4.22285736,17383.0,17382.0,0.18558311]
[1673457995922,4.05755736,17383.0,17382.0,0.18558311]
[1673457996702,2.22085401,17383.0,17382.0,0.35735388]
[1673458005412,2.22085401,17383.0,17382.0,0.26735388]
[1673458005666,2.22085401,17383.0,17382.0,0.29035388]
[1673458005911,2.22085401,17383.0,17382.0,0.09558311]
[1673458006129,2.23685401,17383.0,17382.0,0.09558311]
[1673458006652,2.23685401,17383.0,17382.0,0.26735388]
[1673458010909,2.75025485,17383.0,17382.0,0.26735388]
[1673458011160,2.75025485,17383.0,17382.0,0.09558311]
[1673458011696,2.75025485,17383.0,17382.0,0.26735388]
[1673458012447,2.922812,17383.0,17382.0,0.09558311]
[1673458012718,2.40941116,17383.0,17382.0,0.09558311]
[1673458012963,2.75025485,17383.0,17382.0,0.26735388]
[1673458013215,4.0735499,17383.0,17382.0,0.09558311]
[1673458014487,2.23685401,17383.0,17382.0,0.26735388]
[1673458015297,2.75025485,17383.0,17382.0,0.26735388]
[1673458015536,2.922812,17383.0,17382.0,0.09558311]
[1673458016070,2.40941116,17383.0,17382.0,0.26735388]
[1673458016315,2.23685401,17383.0,17382.0,0.26735388]
[1673458017603,2.40941116,17383.0,17382.0,0.09558311]
[1673458017953,2.40941116,17383.0,17382.0,0.26735388]
[1673458018348,2.23685401,17383.0,17382.0,0.26735388]
[1673458019130,2.40941116,17383.0,17382.0,0.26735388]
[1673458019339,3.56014619,17383.0,17382.0,0.26735388]
[1673458019889,2.40941116,17383.0,17382.0,0.26735388]
[1673458020147,2.23685401,17383.0,17382.0,0.26735388]
[1673458027083,1.6581004,17383.0,17382.0,0.26735388]
[1673458027334,1.6581004,17383.0,17382.0,0.52492062]
[1673458027548,1.6581004,17383.0,17382.0,1.69627715]
[1673458028609,1.6581004,17383.0,17382.0,1.10022762]
[1673458028862,1.6581004,17383.0,17382.0,0.84266088]
[1673458032648,1.6581004,17383.0,17382.0,0.26735388]
[1673458034411,1.6581004,17383.0,17382.0,1.86680306]
[1673458034412,1.65799615,17383.0,17382.0,1.86680306]
[1673458034669,1.65799615,17383.0,17382.0,1.69561345]
[1673458037180,1.65799615,17383.0,17382.0,1.69561345]
[1673458037428,1.65799615,17383.0,17382.0,1.1006346]
[1673458038645,1.65799615,17383.0,17382.0,0.84306786]
[1673458040203,1.65799615,17383.0,17382.0,1.1006346]
[1673458040465,1.65799615,17383.0,17382.0,0.84306786]
[1673458040706,1.65799615,17383.0,17382.0,1.1006346]
[1673458040948,1.65799615,17383.0,17382.0,0.84306786]
[1673458042910,1.65799615,17383.0,17382.0,1.1006346]
[1673458043164,1.65799615,17383.0,17382.0,0.84306786]
[1673458043412,1.65799615,17383.0,17382.0,1.1006346]
[1673458046397,1.65799615,17383.0,17382.0,0.84306786]
[1673458046883,2.81707788,17383.0,17382.0,0.26776086]
[1673458047137,2.81707788,17383.0,17382.0,0.09558311]
[1673458047138,2.98963503,17383.0,17382.0,0.09558311]
[1673458047390,4.14038375,17383.0,17382.0,0.09558311]
[1673458048660,4.3992314,17383.0,17382.0,0.09558311]
[1673458048932,4.57174373,17383.0,17382.0,0.09558311]
[1673458049714,4.3991758,17383.0,17382.0,0.09558311]
[1673458052139,4.74424528,17383.0,17382.0,0.09558311]
[1673458052650,4.39915826,17383.0,17382.0,0.09558311]
[1673458052920,4.74422774,17383.0,17382.0,0.09558311]
[1673458053170,4.57174373,17383.0,17382.0,0.09558311]
[1673458053574,4.22667425,17383.0,17382.0,0.09558311]
[1673458053829,4.57174373,17383.0,17382.0,0.09558311]
[1673458054090,4.39913694,17383.0,17382.0,0.09558311]
[1673458060675,4.39913694,17383.0,17382.0,0.0955197]
[1673458061393,4.39913694,17383.0,17382.0,0.00170682]
[1673458062358,4.39913694,17383.0,17382.0,0.09096941]
[1673458063839,4.56363694,17383.0,17382.0,0.09096941]
[1673458064350,4.30478929,17383.0,17382.0,0.09096941]
[1673458064616,3.15404057,17383.0,17382.0,0.09096941]
[1673458065383,4.30483979,17383.0,17382.0,0.09096941]
[1673458065628,3.15404057,17383.0,17382.0,0.09096941]
[1673458066409,4.30483819,17383.0,17382.0,0.09096941]
[1673458066948,4.88011219,17383.0,17382.0,0.09096941]
[1673458068464,4.30483819,17383.0,17382.0,0.09096941]
[1673458068972,3.15404057,17383.0,17382.0,0.09096941]
[1673458070260,2.64063973,17383.0,17382.0,0.09096941]
[1673458070509,2.98157788,17383.0,17382.0,0.09096941]
[1673458071265,1.82249615,17383.0,17382.0,0.09096941]
[1673458071518,1.82249615,17383.0,17382.0,0.75345644]
[1673458072781,1.82249615,17383.0,17382.0,0.92563419]
[1673458073053,1.65799615,17383.0,17382.0,0.92563419]
[1673458073325,1.65799615,17383.0,17382.0,2.33392638]
[1673458073563,1.65799615,17383.0,17382.0,2.97359288]
[1673458074106,1.65799615,17383.0,17382.0,2.39828588]
[1673458074346,1.65799615,17383.0,17382.0,0.75345644]
[1673458075439,1.65799615,17383.0,17382.0,0.92563419]
[1673458075654,1.65799615,17383.0,17382.0,0.75345644]
[1673458078432,1.65799615,17383.0,17382.0,1.50094119]
[1673458079458,1.65799615,17383.0,17382.0,2.33381493]
[1673458079705,1.65799615,17383.0,17382.0,2.07624819]
[1673458080952,1.6579138,17383.0,17382.0,2.33392638]
[1673458081213,1.6579138,17383.0,17382.0,2.97304103]
[1673458081470,1.6579138,17383.0,17382.0,2.97282947]
[1673458081724,1.6579138,17383.0,17382.0,3.14423064]
[1673458081725,0.014426,17383.0,17382.0,3.14423064]
[1673458081980,0.014426,17383.0,17382.0,3.50470664]
[1673458082231,0.014426,17383.0,17382.0,3.31618421]
[1673458082493,0.014426,17383.0,17382.0,3.22255061]
[1673458082741,0.014426,17383.0,17382.0,5.2430065]
[1673458082992,0.014426,17383.0,17382.0,5.24344182]
[1673458083266,0.014426,17383.0,17382.0,4.89963914]
[1673458083553,0.014426,17383.0,17382.0,4.20621103]
[1673458083784,1.6419138,17385.0,17382.0,4.40013522]
[1673458084041,2.0,17386.0,17384.0,0.17188957]
[1673458084332,2.0,17386.0,17385.0,1.150416]
[1673458084550,2.54855068,17386.0,17385.0,1.150416]
[1673458085806,2.54855068,17386.0,17385.0,0.575208]
[1673458086076,2.55855068,17386.0,17385.0,0.585208]
[1673458088709,2.55855068,17386.0,17385.0,1.160416]
[1673458090279,2.55855068,17386.0,17385.0,0.585208]
[1673458092570,2.01,17386.0,17385.0,1.160416]
[1673458093088,2.01,17386.0,17385.0,1.82856623]
[1673458093600,0.01,17386.0,17385.0,1.82856623]
[1673458094370,0.01,17386.0,17385.0,1.25335823]
[1673458097730,0.01,17386.0,17385.0,1.82856623]
[1673458099759,0.01,17386.0,17385.0,2.39308642]
[1673458101036,0.01,17386.0,17385.0,2.75356242]
[1673458101284,0.01,17386.0,17385.0,2.39308642]
[1673458102044,0.01,17386.0,17385.0,1.81787842]
[1673458106023,0.01,17386.0,17385.0,1.82000146]
[1673458106294,0.00993349,17386.0,17385.0,1.82000146]
[1673458107678,0.00993349,17386.0,17385.0,1.81787842]
[1673458108996,0.63108236,17386.0,17385.0,1.24267042]
[1673458109759,0.00993349,17386.0,17385.0,1.24277656]
[1673458110893,0.00993349,17386.0,17385.0,1.81798456]
[1673458111919,0.00993349,17386.0,17385.0,1.81787842]
[1673458112674,0.00993349,17386.0,17385.0,1.81798456]
[1673458114044,0.00993349,17386.0,17385.0,1.81787842]
[1673458115825,0.00993349,17386.0,17385.0,1.98976799]
[1673458116094,0.00993349,17386.0,17385.0,1.81787842]
[1673458116597,0.00993349,17386.0,17385.0,1.98976799]
[1673458117359,0.00993349,17386.0,17385.0,1.98987413]
[1673458117613,0.00993349,17386.0,17385.0,2.88600718]
[1673458119168,0.00993349,17386.0,17385.0,2.88590104]
[1673458119663,0.00993349,17386.0,17385.0,2.8861447]
[1673458122787,0.00993349,17386.0,17385.0,2.88625084]
[1673458124069,0.00493349,17386.0,17385.0,2.88625084]
[1673458124320,0.00493349,17386.0,17385.0,3.23002997]
[1673458124837,0.00493349,17386.0,17385.0,3.0581404]
[1673458125078,0.00493349,17386.0,17385.0,3.22960947]
[1673458126044,0.00493349,17386.0,17385.0,3.80481747]
[1673458126328,0.00493349,17386.0,17385.0,3.22960947]
[1673458127073,0.78836886,17386.0,17385.0,1.25023946]
[1673458127326,0.78836886,17386.0,17385.0,0.01]
[1673458128904,1.47423239,17386.0,17385.0,0.01]
[1673458129167,3.18368723,17386.0,17385.0,0.01]
[1673458129668,3.09033958,17386.0,17385.0,0.01]
[1673458129934,3.34918723,17386.0,17385.0,0.01]
[1673458130400,5.09033958,17386.0,17385.0,0.01]
[1673458130887,5.34918723,17386.0,17385.0,0.01]
[1673458131641,5.09033958,17386.0,17385.0,0.01]
[1673458132135,5.34918723,17386.0,17385.0,0.01]
[1673458132618,5.09033958,17386.0,17385.0,0.01]
[1673458133126,3.93973239,17386.0,17385.0,0.01]
[1673458134142,3.7672697,17386.0,17385.0,0.01]
[1673458134653,3.93973239,17386.0,17385.0,0.01]
[1673458135672,3.7672697,17386.0,17385.0,0.01]
[1673458136434,3.93973239,17386.0,17385.0,0.01]
[1673458136682,3.7672697,17386.0,17385.0,0.01]
[1673458137675,3.93973239,17386.0,17385.0,0.01]
[1673458138442,3.4672697,17386.0,17385.0,0.01010614]
[1673458138701,3.4672697,17386.0,17385.0,0.01]
[1673458142686,3.4672697,17386.0,17385.0,0.01010614]
[1673458142687,2.75599886,17386.0,17385.0,0.01010614]
[1673458142943,2.75599886,17386.0,17385.0,0.01]
[1673458143199,0.75599886,17386.0,17385.0,0.01]
[1673458152577,1.05599886,17386.0,17385.0,0.01]
[1673458152814,1.5693997,17386.0,17385.0,0.01]
[1673458153240,1.74186239,17386.0,17385.0,0.01]
[1673458154831,1.5693997,17386.0,17385.0,0.01]
[1673458155548,0.75599886,17386.0,17385.0,0.01]
[1673458165135,0.00493349,17386.0,17385.0,1.37126408]
[1673458165638,0.00493349,17386.0,17385.0,2.84366638]
[1673458166390,0.00493349,17386.0,17385.0,2.84356528]
[1673458167145,0.00493349,17386.0,17385.0,2.84366638]
[1673458169221,0.00493349,17386.0,17385.0,2.84356528]
[1673458170726,0.00493349,17386.0,17385.0,3.18734441]
[1673458170984,0.00493349,17386.0,17385.0,3.01535812]
[1673458171754,0.00482946,17386.0,17385.0,3.76196363]
[1673458172512,0.00482946,17386.0,17385.0,3.59062376]
[1673458172749,0.00482946,17386.0,17385.0,4.01992619]
[1673458173009,0.00482946,17386.0,17385.0,3.76215597]
[1673458173269,0.00482946,17386.0,17385.0,3.14818728]
[1673458173525,0.00482946,17386.0,17385.0,3.89921687]
[1673458173773,0.00482946,17386.0,17385.0,3.59921687]
[1673458174558,0.00482946,17386.0,17385.0,4.30325371]
[1673458175076,0.00482946,17386.0,17385.0,3.95969287]
[1673458176410,0.00482946,17386.0,17385.0,4.60314162]
[1673458176613,0.00482946,17386.0,17385.0,4.30314162]
[1673458177141,0.00482946,17386.0,17385.0,4.60314162]
[1673458178151,0.00482946,17386.0,17385.0,4.30314162]
[1673458178410,0.00482946,17386.0,17385.0,4.13139765]
[1673458178665,0.00482946,17386.0,17385.0,4.30314162]
[1673458178921,0.00482946,17386.0,17385.0,4.60314162]
[1673458179182,0.00482946,17386.0,17385.0,4.30314162]
[1673458179950,0.00482946,17386.0,17385.0,4.30294928]
[1673458180195,0.00482946,17386.0,17385.0,3.94247328]
[1673458180443,0.00482946,17386.0,17385.0,3.77071894]
[1673458180944,0.00482946,17386.0,17385.0,3.60063045]
[1673458181445,0.00482946,17386.0,17385.0,3.43497371]
[1673458181713,0.00482946,17386.0,17385.0,2.5381483]
[1673458181965,0.00482946,17386.0,17385.0,2.79569738]
[1673458182210,0.00482946,17386.0,17385.0,2.5381483]
[1673458183050,0.00482946,17386.0,17385.0,2.79569738]
[1673458183768,0.00482946,17386.0,17385.0,3.4348299]
[1673458184034,0.00482946,17386.0,17385.0,3.43527818]
[1673458188340,0.00482946,17386.0,17385.0,3.4348299]
[1673458188834,0.00482946,17386.0,17385.0,2.79569738]
[1673458189102,0.00482946,17386.0,17385.0,2.5381483]
[1673458189360,0.00482946,17386.0,17385.0,3.51598195]
[1673458192112,0.00482946,17386.0,17385.0,3.51653108]
[1673458194565,0.00482946,17386.0,17385.0,3.68827631]
[1673458194816,0.00472492,17386.0,17385.0,3.68827631]
[1673458195817,0.00472492,17386.0,17385.0,3.68772718]
[1673458196062,0.00472492,17386.0,17385.0,3.51602286]
[1673458196556,0.00472492,17386.0,17385.0,3.68772718]
[1673458197095,0.00472492,17386.0,17385.0,3.51604849]
[1673458197342,0.00472492,17386.0,17385.0,3.68772718]
[1673458198085,0.00472492,17386.0,17385.0,3.85949669]
[1673458198299,0.00472492,17386.0,17385.0,3.85949699]
[1673458198544,0.00472492,17386.0,17385.0,3.68772718]
[1673458199286,0.00472492,17386.0,17385.0,3.51609973]
[1673458200504,0.00472492,17386.0,17385.0,3.68772718]
[1673458200750,0.00472492,17386.0,17385.0,3.85948152]
[1673458201509,0.00285592,17386.0,17385.0,3.85948152]
[1673458204011,0.00285592,17386.0,17385.0,3.86108288]
[1673458207536,0.00285592,17386.0,17385.0,3.51763413]
[1673458208305,0.00285592,17386.0,17385.0,3.08833071]
[1673458209063,0.00285592,17386.0,17385.0,3.51806733]
[1673458209406,0.00285592,17386.0,17385.0,3.51654603]
[1673458209568,0.00285592,17386.0,17385.0,3.51646597]
[1673458210601,0.00285592,17386.0,17385.0,3.51654603]
[1673458213328,0.00285592,17386.0,17385.0,3.08680941]
[1673458214612,0.00285592,17386.0,17385.0,3.08672935]
[1673458215113,0.00285592,17386.0,17385.0,3.51649952]
[1673458215367,0.00285592,17386.0,17385.0,3.08672935]
[1673458216634,0.00285592,17386.0,17385.0,3.08688166]
[1673458217658,0.00285592,17386.0,17385.0,3.08672935]
[1673458217916,0.00285592,17386.0,17385.0,3.51649739]
[1673458218678,0.00285592,17386.0,17385.0,3.08672935]
[1673458218942,0.00285592,17386.0,17385.0,3.5165147]
[1673458220473,0.00285592,17386.0,17385.0,3.51666701]
[1673458221235,0.00285592,17386.0,17385.0,3.86051441]
[1673458222516,0.00285592,17386.0,17385.0,3.8603621]
[1673458223722,0.00285592,17386.0,17385.0,3.86051441]
[1673458224273,0.00273714,17386.0,17385.0,3.51666701]
[1673458224523,0.00273714,17386.0,17385.0,3.8603731]
[1673458228063,0.00273714,17386.0,17385.0,3.86052541]
[1673458229288,0.00273714,17386.0,17385.0,3.86049807]
[1673458229545,0.00273714,17386.0,17385.0,3.51666701]
[1673458230073,0.00273714,17386.0,17385.0,3.86034445]
[1673458230329,0.00273714,17386.0,17385.0,3.86049676]
[1673458231807,0.00273714,17386.0,17385.0,3.86034445]
[1673458233563,0.58519431,17386.0,17385.0,3.6884323]
[1673458235300,0.58519431,17386.0,17385.0,3.69055534]
[1673458235554,0.58519431,17386.0,17385.0,3.6884323]
[1673458235808,0.58519431,17386.0,17385.0,2.88568523]
[1673458236061,0.58519431,17386.0,17385.0,1.67093843]
[1673458236321,0.58519431,17386.0,17385.0,1.41306523]
[1673458236841,0.58519431,17386.0,17385.0,1.67093843]
[1673458237147,0.58519431,17386.0,17385.0,2.31215716]
[1673458237894,0.58519431,17386.0,17385.0,2.3122633]
[1673458238660,0.58519431,17386.0,17385.0,2.32065716]
[1673458239164,0.58519431,17386.0,17385.0,2.3207633]
[1673458239418,0.58519431,17386.0,17385.0,2.32065716]
[1673458239922,0.00273714,17386.0,17385.0,2.32065716]
[1673458241278,0.00273714,17386.0,17385.0,2.49258345]
[1673458242575,0.00273714,17386.0,17385.0,2.49268959]
[1673458243081,0.00273714,17386.0,17385.0,2.49258345]
[1673458243344,0.00273714,17386.0,17385.0,2.32060243]
[1673458243615,0.00273714,17386.0,17385.0,2.66443218]
[1673458243869,0.00273714,17386.0,17385.0,2.49258345]
[1673458244386,0.00273714,17386.0,17385.0,2.32060067]
[1673458244908,0.00273714,17386.0,17385.0,2.49258345]
[1673458245149,0.00273714,17386.0,17385.0,2.66443407]
[1673458245427,0.00273714,17386.0,17385.0,2.49258345]
[1673458246426,0.00273714,17386.0,17385.0,2.32060262]
[1673458249600,0.00273714,17386.0,17385.0,1.42151069]
[1673458249851,1.55388585,17386.0,17385.0,0.83780269]
[1673458250102,1.55388585,17386.0,17385.0,0.66595377]
[1673458250369,1.55388585,17386.0,17385.0,0.09074577]
[1673458250877,2.05644854,17386.0,17385.0,0.09074577]
[1673458251140,3.46587244,17386.0,17385.0,0.09074577]
[1673458252004,5.46587244,17386.0,17385.0,0.09074577]
[1673458252822,5.86116744,17386.0,17385.0,0.09074577]
[1673458253080,5.86116744,17386.0,17385.0,1.28559983]
[1673458253081,2.00273714,17386.0,17385.0,1.28559983]
[1673458253359,0.00273714,17386.0,17385.0,1.45734261]
[1673458253614,0.00273714,17386.0,17385.0,1.28549369]
[1673458253865,0.00273714,17386.0,17385.0,1.28559983]
[1673458254149,0.00273714,17386.0,17385.0,0.09074577]
[1673458256337,0.55090635,17386.0,17385.0,0.09074577]
[1673458258780,0.55090635,17386.0,17385.0,0.66595377]
[1673458259551,0.55090635,17386.0,17385.0,0.83780269]
[1673458260056,0.55090635,17386.0,17385.0,0.66595377]
[1673458260811,0.55090635,17386.0,17385.0,0.09074577]
[1673458270375,1.39430719,17386.0,17385.0,0.09074577]
[1673458270630,1.86676988,17386.0,17385.0,0.09074577]
[1673458270892,3.01734931,17386.0,17385.0,0.09074577]
[1673458271664,1.05336904,17386.0,17385.0,0.09074577]
[1673458271944,0.88090635,17386.0,17385.0,0.09074577]
[1673458272968,1.56676988,17386.0,17385.0,0.09074577]
[1673458274273,2.71734826,17386.0,17385.0,0.09074577]
[1673458278119,2.97619591,17386.0,17385.0,0.09074577]
[1673458278632,2.97619591,17386.0,17385.0,0.0906763]
[1673458279709,3.7239777,17386.0,17385.0,0.0906763]
[1673458281194,4.2991527,17386.0,17385.0,0.0906763]
[1673458283242,4.12636314,17386.0,17385.0,0.0906763]
[1673458283501,4.47143262,17386.0,17385.0,0.0906763]
[1673458283758,4.12636314,17386.0,17385.0,0.0906763]
[1673458284523,3.89625762,17386.0,17385.0,0.0906763]
[1673458284753,3.7239777,17386.0,17385.0,0.0906763]
[1673458285569,3.5511828,17386.0,17385.0,0.0906763]
[1673458285812,3.89625228,17386.0,17385.0,0.0906763]